Cogmind - Beta 13 @@@ ROGUE MODE // 2024.04.21 @ 14:19:21 Player: Exceptionally Mediocre Result: Destroyed by C-35 Carver with Carbide Saw Performance ------------- Evolutions (5) 2500 Regions Visited (6) 1200 Robots Destroyed (61) 305 Value Destroyed (1407) 1407 Prototype IDs (4) 80 Alien Tech Used (0) 0 Bonus (284) 284 TOTAL SCORE: 5776 Bonus ------- Follower Combat Kills 95 Entered Garrisons 200 Friendly Fire -11 Cogmind --------- Core Integrity 0/1000 Matter 285/300 Energy 100/100 System Corruption 4% Temperature Cool (0) Movement Core (50) Location -5/Garrison Parts ------- > --- POWER (2) -------- (None) > --- PROPULSION (4) --- (None) > --- UTILITY (8) ------ Salvage Targeting Computer > --- WEAPON (3) ------- (None) > --- INVENTORY (5) ---- Medium Storage Unit Hacking Suite System Shield Relay Coupler [Sentry] (19) Improved Remote Datajack Peak State ------------ > --- POWER ------------ Ion-Nuclear Engine > --- PROPULSION ------- Flying XBT Exoskeleton > --- UTILITY ---------- Armored Scrap Engine Salvage Targeting Computer Core Analyzer System Restoration Module > --- WEAPON ----------- Burst Laser Plasma Construct/G Burst Directed Construct/G Heavy Flail > --- INVENTORY -------- Medium Storage Unit Hacking Suite System Shield Relay Coupler [Sentry] [Rating: 56] Favorites ----------- Power Ion Engine Engine Ion Engine Power Core Light Nuclear Core Propulsion Light Treads Treads Light Treads Flight Unit Constructs Utility Medium Storage Unit Device Armored Scrap Engine Storage Medium Storage Unit Processor Signal Interpreter Weapon Assault Rifle Energy Gun Constructs Ballistic Gun Assault Rifle Launcher Grenade Launcher Impact Weapon Heavy Flail Build | -11 -10 -10 -10 -7 -5 -5 ------- Run | Yrd Mat Min Sub Rec Fac Gar Slots Evolved 10 | . . . . . 10 . Power 1 | . . . . . 1 . Propulsion 2 | . . . . . 2 . Utility 6 | . . . . . 6 . Weapon 1 | . . . . . 1 . Parts Attached 48 | 7 12 . 3 2 1 23 Power 8 | 1 1 . 1 . . 5 Engine 3 | 1 1 . . . . 1 Core 5 | . . . 1 . . 4 Reactor . | . . . . . . . Propulsion 14 | 2 3 . . . . 9 Treads 5 | 2 3 . . . . . Leg . | . . . . . . . Wheel . | . . . . . . . Hover . | . . . . . . . Flight 9 | . . . . . . 9 Utility 9 | 1 4 . . 1 1 2 Device 4 | . 2 . . 1 1 . Storage 2 | 1 1 . . . . . Processor 3 | . 1 . . . . 2 Hackware . | . . . . . . . Protection . | . . . . . . . Artifact . | . . . . . . . Weapon 17 | 3 4 . 2 1 . 7 Energy Gun 5 | 1 . . . . . 4 Energy Cannon . | . . . . . . . Ballistic Gun 9 | 2 3 . 1 . . 3 Ballistic Cannon . | . . . . . . . Launcher 2 | . 1 . 1 . . . Special Weapon . | . . . . . . . Impact Weapon 1 | . . . . 1 . . Slashing Weapon . | . . . . . . . Piercing Weapon . | . . . . . . . Special Melee Weapon . | . . . . . . . Unidentified Prototypes . | . . . . . . . Parts Lost 31 | . 2 . 1 . . 28 Power 7 | . 1 . . . . 6 Propulsion 10 | . . . . . . 10 Utility 3 | . . . . . . 3 Weapon 11 | . 1 . 1 . . 9 Highest Loss Streak 11 | . 1 . 1 . . 11 To Critical Strikes 1 | . . . . . . 1 Average Slot Usage (%) 77 | . 97 100 100 60 33 41 Engine 9 | . 14 14 4 6 5 2 Core 1 | . . . 9 3 . . Treads 15 | . 28 28 28 1 . . Wheel 3 | . . . . 10 . . Flight 1 | . . . . . 4 7 Device 10 | . 7 14 14 14 8 7 Storage 7 | . 14 14 14 . . . Processor 2 | . 4 . . . . 10 Energy Gun 1 | . . . . 2 . 3 Ballistic Gun 17 | . 24 28 25 10 5 3 Launcher 1 | . 3 . 2 . . . Impact Weapon 4 | . . . . 11 5 2 Naked Turns . | . . . . . . . Heaviest Build 21 | 11 21 20 21 20 18 18 Greatest Support 44 | 40 40 40 40 40 44 44 Greatest Overweight (x) 3 | . . . . 3 . 3 Average Overweight (x) . | . . . . . . . Largest Inventory Capacity 10 | 8 10 10 10 10 5 5 Average Capacity 7 | 7 9 10 10 5 5 5 Most Carried 10 | 4 10 10 10 9 5 5 Average Carried 6 | 2 8 10 9 5 5 4 Final Capacity 10 | 8 10 10 10 5 5 5 Final Carried 10 | 4 10 10 9 5 5 5 Scrap Engine Consumption 38 | . . . . 33 1 4 Constructs Created 4 | . . . . 3 1 . Constructs Modified 10 | . . . . 6 1 3 Class Distribution -------------------- 66% | Mutant 25% | Construct 5% | Scavenger-Mutant Dominant Class ---------------- Mutant | -10/Materials Mutant | -10/Mines Scavenger-Mutant | -10/Subcaves Construct | -7/Recycling Mutant | -5/Factory Mutant | -5/Garrison Resources | -11 -10 -10 -10 -7 -5 -5 ----------- Run | Yrd Mat Min Sub Rec Fac Gar Matter Collected 1351 | 263 597 48 52 154 . 237 Remotely . | . . . . . . . Salvage Created 2148 | 115 743 87 101 501 . 601 Parts 125 | 9 55 13 13 12 . 23 Haulers Intercepted 2 | . 2 . . . . . Recyclers Shooed 3 | . 1 . . 2 . . Parts Field Recycled . | . . . . . . . Retrieved Matter . | . . . . . . . Parts Self-Destructed 9 | . . . 9 . . . Prevented . | . . . . . . . Kills | -11 -10 -10 -10 -7 -5 -5 ------- Run | Yrd Mat Min Sub Rec Fac Gar Combat Hostiles Destroyed 28 | . 8 1 5 1 . 13 Guns 21 | . 5 1 1 1 . 13 AOE 7 | . 3 . 4 . . . Classes Destroyed 13 | 3 7 . 2 . . 1 Worker 6 | 1 5 . . . . . Builder 6 | . 4 . . 2 . . Tunneler 4 | 2 . 2 . . . . Hauler 2 | . 2 . . . . . Recycler 8 | 1 2 . . 5 . . Mechanic 1 | . 1 . . . . . Operator 1 | . 1 . . . . . Turret 2 | . . . 2 . . . Watcher 3 | . 3 . . . . . Swarmer 12 | . 3 . 4 . . 5 Grunt 13 | . 5 1 . . . 7 Sentry 2 | . . . 1 1 . . Programmer 1 | . . . . . . 1 Best Kill Streak 4 | 4 4 2 4 4 . 3 Combat Bots Only 4 | . 3 1 4 1 . 3 Max Kills in Single Turn 3 | 1 3 1 3 1 . 1 Gunslinging . | . . . . . . . Exploded 3 | . 2 . 3 . . . Melee . | . . . . . . . Uniques/NPCs Destroyed . | . . . . . . . Combat | -11 -10 -10 -10 -7 -5 -5 -------- Run | Yrd Mat Min Sub Rec Fac Gar Hostile Shots Fired 472 | . 49 3 78 45 . 297 Missed 157 | . 10 . 36 12 . 99 Damage Taken 4891 | . 615 69 263 239 . 3705 Core 1229 | . 114 12 34 64 . 1005 Absorbed by Shields 7 | . . . . . . 7 Regen/Repaired (Parts) 204 | . . . . 151 . 53 Core Remaining (%) 55 | 100 . . . 10 . . Volleys Fired 183 | 7 88 8 15 11 . 54 Largest 3 | 2 2 2 2 1 . 3 Hottest 148 | 40 40 40 50 20 . 148 Shots Fired 296 | 14 149 16 30 11 . 76 Gun 287 | 14 147 16 23 11 . 76 Cannon . | . . . . . . . Launcher 9 | . 2 . 7 . . . Special . | . . . . . . . Kinetic 242 | 14 147 16 23 . . 42 Thermal 42 | . . . . 11 . 31 Explosive 9 | . 2 . 7 . . . Electromagnetic 3 | . . . . . . 3 Robot Hit Streak 18 | 8 7 5 7 13 . 18 Robot Miss Streak 6 | 1 4 3 2 . . 6 Penetration Max . | . . . . . . . Secondary Targets 2 | . . . . . . 2 Max Gunslinging Chain 1 | . . . . . . 1 Shots Hit Robots 204 | 9 86 9 19 18 . 63 Core Hits 115 | 5 40 4 15 7 . 44 Critical Kills . | . . . . . . . Critical Parts Destroyed 3 | . 2 . . 1 . . Critical Strikes 3 | . 2 . . 1 . . Destroy 2 | . 2 . . . . . Smash 1 | . . . . 1 . . Melee Attacks 13 | . . . . 10 . 3 Impact 13 | . . . . 10 . 3 Slashing . | . . . . . . . Piercing . | . . . . . . . Sneak Attacks 5 | . . . . 5 . . Combat Hostiles . | . . . . . . . Follow-up Attacks . | . . . . . . . Damage Inflicted 4365 | 101 1324 128 616 761 . 1435 Guns 3129 | 101 1109 128 172 184 . 1435 Cannons . | . . . . . . . Explosions 659 | . 215 . 444 . . . Melee 577 | . . . . 577 . . Ramming . | . . . . . . . Kinetic 2192 | 101 1109 128 172 . . 682 Thermal 869 | . . . . 184 . 685 Explosive 659 | . 215 . 444 . . . Electromagnetic 68 | . . . . . . 68 Impact 577 | . . . . 577 . . Slashing . | . . . . . . . Piercing . | . . . . . . . Highest Corruption 4 | . . . . . . 4 Average Corruption 3 | . . . . . . 3 Corruption Purged . | . . . . . . . Corruption Blocked . | . . . . . . . Effects 4 | . . . . . . 4 Message Errors 1 | . . . . . . 1 Matter Fused 1 | . . . . . . 1 Data Loss (minor) 1 | . . . . . . 1 Data Loss (major) 1 | . . . . . . 1 Overload Shots . | . . . . . . . Overflow Damage 265 | . . . 8 257 . . Projectiles . | . . . . . . . Explosions 8 | . . . 8 . . . Melee 257 | . . . . 257 . . Knockbacks 4 | . . . . 4 . . Impact 4 | . . . . 4 . . Kinetic . | . . . . . . . Secondary . | . . . . . . . Self-Inflicted Damage 76 | . . . 76 . . . Shots 2 | . . . 2 . . . Rammed . | . . . . . . . Targets Rammed . | . . . . . . . Kicked . | . . . . . . . Crushed . | . . . . . . . Highest Temperature 255 | . 20 2 . 8 . 255 Average Temperature 73 | . 7 1 . 3 . 92 Received Heat Transfer 963 | . 303 36 117 66 . 441 Siege Activations . | . . . . . . . Robots Corrupted . | . . . . . . . Combat Hostiles . | . . . . . . . Parts Fried 7 | . . . . 7 . . Impact Corruptions 10 | . . . . 10 . . Robots Melted . | . . . . . . . Combat Hostiles . | . . . . . . . Parts Melted 5 | . . . . . . 5 Heat Transferred 2351 | . . . . 87 . 2264 Parts Sabotaged . | . . . . . . . Parts Stolen . | . . . . . . . Parts Stripped . | . . . . . . . Power Chain Reactions . | . . . . . . . Alert | -11 -10 -10 -10 -7 -5 -5 ------- Run | Yrd Mat Min Sub Rec Fac Gar Peak Influence 495 | 20 245 84 . 495 132 312 Initial 475 | . 13 4 . 475 132 92 Average 181 | 5 82 32 . 350 132 246 Maximum Alert Level 2 | . 1 . . 2 . 1 Low Security (%) 60 | 100 88 100 . 24 100 17 Level 1 26 | . 11 . . 37 . 82 Level 2 12 | . . . . 37 . . Level 3 . | . . . . . . . Level 4 . | . . . . . . . Level 5 . | . . . . . . . High Security . | . . . . . . . Max Security . | . . . . . . . Squads Dispatched 2 | . 1 . . . 1 . Investigation 1 | . . . . . 1 . Extermination . | . . . . . . . Reinforcement 1 | . 1 . . . . . Assault . | . . . . . . . Garrison . | . . . . . . . Intercept . | . . . . . . . Searches Triggered . | . . . . . . . Construction Impeded . | . . . . . . . Haulers Reinforced . | . . . . . . . Active Scanning Responses . | . . . . . . . Cargo Convoy Interrupts . | . . . . . . . Stealth | -11 -10 -10 -10 -7 -5 -5 --------- Run | Yrd Mat Min Sub Rec Fac Gar Distress Signals 2 | . 1 1 . . . . Communications Jammed . | . . . . . . . Distress Signals . | . . . . . . . Times Spotted 96 | . 19 4 40 1 . 32 Peak Tracking Total 9 | . 6 2 6 1 . 9 Tactical Retreats 8 | . . . 3 . . 5 Traps | -11 -10 -10 -10 -7 -5 -5 ------- Run | Yrd Mat Min Sub Rec Fac Gar Traps Triggered 2 | . 1 . . . . 1 Indirectly . | . . . . . . . Trap Hack Attempts . | . . . . . . . Triggered . | . . . . . . . Disarmed . | . . . . . . . Reprogrammed . | . . . . . . . Reused . | . . . . . . . Traps Extracted . | . . . . . . . Installed . | . . . . . . . Triggered . | . . . . . . . Machines | -11 -10 -10 -10 -7 -5 -5 ---------- Run | Yrd Mat Min Sub Rec Fac Gar Machines Disabled 4 | . . . 3 . . 1 Max in Single Turn 3 | . . . 3 . . 1 Garrison Relay 1 | . . . . . . 1 Machines Repaired . | . . . . . . . Machines Dismantled . | . . . . . . . Machines Sabotaged . | . . . . . . . Overloaded Fab Kills . | . . . . . . . Hacking | -11 -10 -10 -10 -7 -5 -5 --------- Run | Yrd Mat Min Sub Rec Fac Gar Machines Accessed 10 | . 4 . . 5 1 . Terminals 7 | . 4 . . 3 . . Fabricators . | . . . . . . . Repair Stations . | . . . . . . . Recycling Units 2 | . . . . 2 . . Scanalyzers . | . . . . . . . Garrison Access 1 | . . . . . 1 . Total Hacks 20 | . 7 . . 10 3 . Successful 9 | . 6 . . 2 1 . Failed 11 | . 1 . . 8 2 . Catastrophic 2 | . . . . 1 1 . Database Lockouts . | . . . . . . . Manual 13 | . 7 . . 6 . . Terminals 13 | . 7 . . 6 . . Fabricators . | . . . . . . . Repair Stations . | . . . . . . . Recycling Units 4 | . . . . 4 . . Scanalyzers . | . . . . . . . Garrison Access 3 | . . . . . 3 . Terminal Hacks 2 | . 2 . . . . . Branch Access Points 1 | . 1 . . . . . Unreport Threat 1 | . 1 . . . . . Fabricator Hacks . | . . . . . . . Repair Station Hacks . | . . . . . . . Recycling Unit Hacks 1 | . . . . 1 . . Retrieve Components 1 | . . . . 1 . . Scanalyzer . | . . . . . . . Garrison Access Hacks 1 | . . . . . 1 . Unlock Access 1 | . . . . . 1 . Unauthorized Hacks 5 | . 4 . . 1 . . Terminals 5 | . 4 . . 1 . . Botnet 5 | . 4 . . 1 . . Fabricators . | . . . . . . . Repair Stations . | . . . . . . . Recycling Units . | . . . . . . . Scanalyzers . | . . . . . . . Garrison Access . | . . . . . . . Data Cores Recovered . | . . . . . . . Used . | . . . . . . . Hacking Detections 6 | . 2 . . 3 1 . Full Trace Events 2 | . . . . 1 1 . Feedback Events . | . . . . . . . Feedback Blocked . | . . . . . . . Robot Schematics Acquired . | . . . . . . . Robots Built . | . . . . . . . Authchips . | . . . . . . . Time . | . . . . . . . Total Robot Build Rating . | . . . . . . . Part Schematics Acquired . | . . . . . . . Parts Built . | . . . . . . . Authchips . | . . . . . . . Time . | . . . . . . . Total Part Build Rating . | . . . . . . . Parts Repaired . | . . . . . . . Time . | . . . . . . . Parts Recycled . | . . . . . . . Recycled Matter . | . . . . . . . Retrieved Matter . | . . . . . . . Retrieved Components 4 | . . . . 4 . . Parts Scanalyzed . | . . . . . . . Part Schematics Acquired . | . . . . . . . Parts Damaged . | . . . . . . . Bothacking | -11 -10 -10 -10 -7 -5 -5 ------------ Run | Yrd Mat Min Sub Rec Fac Gar Used RIF Installer . | . . . . . . . Robots Hacked . | . . . . . . . Non-combat . | . . . . . . . Combat . | . . . . . . . Robot Hacks Applied . | . . . . . . . Relay Couplers Released 4 | . . . . . . 4 Machine Destruction 4 | . . . . . . 4 Fabnet Peak Effective % . | . . . . . . . Robots Rewired . | . . . . . . . Allies Hacked . | . . . . . . . Hacks Repelled . | . . . . . . . Allies | -11 -10 -10 -10 -7 -5 -5 -------- Run | Yrd Mat Min Sub Rec Fac Gar Total Allies 3 | . . 3 . . . . Largest Group 3 | . . 3 1 . . . Highest-Rated Group 40 | . . 40 16 . . . Highest-Rated Ally 16 | . . 16 16 . . . Total Orders . | . . . . . . . Ally Attacks 21 | . . 19 2 . . . Total Damage 276 | . . 245 31 . . . Kills 3 | . . 3 . . . . Allies Corrupted . | . . . . . . . Allies Melted . | . . . . . . . Intel | -11 -10 -10 -10 -7 -5 -5 ------- Run | Yrd Mat Min Sub Rec Fac Gar Robot Analysis Total . | . . . . . . . Derelict Logs Recovered 2 | . . 1 1 . . . Drone Launches . | . . . . . . . Drone Recoveries . | . . . . . . . Exploration | -11 -10 -10 -10 -7 -5 -5 ------------- Run | Yrd Mat Min Sub Rec Fac Gar Turns Passed 3431 | 113 1276 376 144 1058 55 409 Spaces Moved 2035 | 52 620 219 58 670 61 355 Core 153 | 3 . . . 107 . 43 Treads 992 | 49 620 219 58 45 1 . Legs . | . . . . . . . Wheels 518 | . . . . 518 . . Hover . | . . . . . . . Flight 372 | . . . . . 60 312 Fastest Speed 29 | 50 160 160 160 50 87 29 Average Speed 130 | 153 160 160 160 131 87 60 Slowest Speed 200 | 160 160 160 160 200 140 200 Overloaded Moves . | . . . . . . . Propulsion Burnouts . | . . . . . . . Robots Hopped 5 | . . . . . . 5 Cave-ins Triggered . | . . . . . . . Exploration Rate (%) 37 | 5 75 53 7 92 1 32 Regions Visited 6 Branch Regions 3 Pre-discovered Areas 1 | . . . 1 . . . Known Exits Taken 2 | . 1 . . . 1 . Unknown Exits Taken 4 | 1 . 1 1 1 . . Scrap Searched 1 | . . 1 . . . . Spaces Dug 9 | . 6 . . 3 . . Terrain Destroyed 33 | . 15 . 15 3 . . Melee 3 | . . . . 3 . . Projectile . | . . . . . . . AOE 30 | . 15 . 15 . . . Terrain Rammed . | . . . . . . . Walls Destroyed . | . . . . . . . Machines Disabled . | . . . . . . . Actions | -11 -10 -10 -10 -7 -5 -5 --------- Run | Yrd Mat Min Sub Rec Fac Gar Total 2494 | 70 763 230 79 833 61 458 Wait 152 | . 9 2 1 115 . 25 Move 2017 | 51 619 218 57 669 60 343 Hop 5 | . . . . . . 5 Pick Up 38 | 5 20 1 1 8 . 3 Fast Attach 31 | 5 2 . 1 1 1 21 Attach 8 | 1 3 . 1 1 . 2 Detach 6 | . 1 . . 5 . . Swap 9 | 1 7 . 1 . . . Drop 31 | . 14 1 2 13 . 1 Fire 183 | 7 88 8 15 11 . 54 Melee 13 | . . . . 10 . 3 Ram . | . . . . . . . Kick . | . . . . . . . Crush . | . . . . . . . Escape Stasis 1 | . . . . . . 1 Rewire . | . . . . . . . Trap . | . . . . . . . Miscellaneous . | . . . . . . . Route ------- -11/Scrapyard -10/Materials (discovered 3 exits: [*Mat x2] / *Min) -10/Mines -10/Subcaves -7/Recycling -5/Factory -5/Garrison (discovered 1 exit: [*Fac]) History --------- Turn | Location | Event 2 | -11/Scrapyard | Met Revision 17 45 | -11/Scrapyard | Discovered new exit (range 15) 114 | -11/Scrapyard | Entered Materials 300 | -10/Materials | Build established: Mutant 429 | -10/Materials | Discovered new exit (range 15) 469 | -10/Materials | Identified exit to Mines 585 | -10/Materials | Discovered new exit (range 15) 1390 | -10/Materials | Entered Mines 1410 | -10/Mines | Assisted by bots powering up and referring to "LRC-V3" 1580 | -10/Mines | Discovered new exit (range 11) 1646 | -10/Mines | Learned Materials garrison access intel 1677 | -10/Mines | Core integrity fell below 50% 1766 | -10/Mines | Entered Subcaves 1766 | -10/Subcaves | Accompanied by 1 ally 1782 | -10/Subcaves | Learned location of Recycling (-7) 1855 | -10/Subcaves | Discovered new exit (range 13) 1910 | -10/Subcaves | Entered Recycling 1926 | -7/Recycling | Found Scrap Engine 2425 | -7/Recycling | Core integrity fell below 20% 2433 | -7/Recycling | Build established: Construct 2712 | -7/Recycling | Discovered new exit (range 16) 2968 | -7/Recycling | Entered Factory 2968 | -5/Factory | Evolved 10 slots: Power x1, Propulsion x2, Utility x6, Weapon x1 3020 | -5/Factory | Identified exit to Garrison 3023 | -5/Factory | Entered Garrison 3037 | -5/Garrison | Triggered checkpoint 3079 | -5/Garrison | Triggered checkpoint 3121 | -5/Garrison | Garrison Relay disabled 3185 | -5/Garrison | Triggered checkpoint 3233 | -5/Garrison | Triggered checkpoint 3278 | -5/Garrison | Lost 10 parts (3p2n1u4w) 3308 | -5/Garrison | Core integrity fell below 50% 3331 | -5/Garrison | Triggered checkpoint 3357 | -5/Garrison | Discovered new exit (range 10) 3361 | -5/Garrison | Attempted to access garrison exit controls, blocked by remote lockdown 3366 | -5/Garrison | Lost 11 parts (2p6n1u2w) 3413 | -5/Garrison | Core integrity fell below 20% 3429 | -5/Garrison | Triggered checkpoint 3432 | -5/Garrison | Destroyed by C-35 Carver with Carbide Saw Last Messages --------------- 03404_ Acquired 35 matter. 03404_ Hvy. Laser severed. 03404_ VTOL Module severed. 03405_ Acquired Lgt. Angular Momentum Engine. 03409_ Lgt. Angular Momentum Engine destroyed. 03409_ Acquired VTOL Module. 03413_ VTOL Module severed. 03413_ Acquired VTOL Module. 03415_ VTOL Module destroyed. 03417_ System corrupted: Substantial component data lost. 03417_ Core Analyzer severed. 03419_ Scrap Engine destroyed. 03429_ Beams of light sweep through the air. An alarm sounds. 03431_ Triggered Stasis Trap. 03431_ A bubble of rippling energy engulfs the area. 03431_ Field strength at 94. 03432_ Field strength at 88. Map ----- +----------------------------------------------------+ | ??????#! ## #?????????????????# %#???????????? | | ??????#! ## #?????????????????# #???????????? | | ??????#! ## #?????????????????# %#???????????? | | ??????#! ## #???????????#######% #???????????? | | ??????####### #???????????# ## =#???????????? | | ????????????# ############# ##% ##????????? # | | ????????????# ######## # | | ????????????# % | | ????????????# | | ????????????############ ## ## ############ | | ???????????????????????# ## ## ##?????????? | | ???????????????????????" #????????? | | ???????????????????????" #????????? | | ???????????????????????" #????????? | | ???????????????????????" #????????? | | ???????????????????????# ## ## ###????????? | | ???????????????????????# ## ## #??????????? | | ???????????????????????# #??????????? | | ???????????????????????# +??????????? | | ???????????????????????# #??????????? | | ???????????????????????## ## ## #??????????? | | ????????????????????????#c #??????# #??????????? | | ????????????????????????#c #??????# #??????????? | | ????????????????????????# #??????? ???????????? | | ????????????????????????#cc#?????????????????????? | | ????????????????????????#@ #?????????????????????? | | ????????????????????????# #?????????????????????? | | ????????????????????????# #?????????????????????? | | ???????????????????????? ?????????????????????? | | ???????????????????????? ##????????????????????? | | ????????????????????????## #?????????????????????? | | ?????????????????????????? #?????????????????????? | | ?????????????????????????? #?????????????????????? | | ?????????????????????????? #?????????????????????? | | ?????????????????????????? #?????????????????????? | | ?????????????????????????? #?????????????????????? | | ?????????????????????????? #?????????????????????? | | ?????????????????????????? #?????????????????????? | | ?????????????????????????????????????????????????? | | ?????????????????????????????????????????????????? | | ?????????????????????????????????????????????????? | | ?????????????????????????????????????????????????? | | ?????????????????????????????????????????????????? | | ?????????????????????????????????????????????????? | | ?????????????????????????????????????????????????? | | ?????????????????????????????????????????????????? | | ?????????????????????????????????????????????????? | | ?????????????????????????????????????????????????? | | ?????????????????????????????????????????????????? | | ?????????????????????????????????????????????????? | +----------------------------------------------------+ Best States ------------- Heat Dissipation 40 Energy Generation 14 Energy Capacity 250 Matter Stores 300 Matter Capacity 300 Sight Range 16 Terrain Scan Range 16 Terrain Scan Density 10 Evasion (%) 63 Core Analysis 6 Recoil Reduction 2 Salvage Targeting 1 Item Schematics ----------------- None Robot Schematics ------------------ None Fabricated ------------ Nothing Alien Tech Used ----------------- None Achievements -------------- None Challenges ------------ None Game ------ Seed IonicPortableRailgun Manual? 0 Play Time 00:33:56 Cumulative 90.8 hours Start 2024.04.21 @ 13:43:44 End 2024.04.21 @ 14:19:21 Sessions 1 Manual Loads 0 Difficulty Rogue Special Mode None Game No. 106 Rogue 106 Adventurer 0 Explorer 0 Win Type - Total 0 Types 0/0/0/0/0/0/0/0/0 Lore% 26 Gallery% 50 Achievement% 39 Wizard Run 0 Options --------- Layout 1 ASCII 0 Keyboard 1 Movement Vi Keybinds 0 Fullscreen 1 Font 24/Smallcaps Map View 50x35 Zoom Use 0% Tactical HUD 1 Map Filters NONE Filters NONE Steam 1 RUN: 7e50f9d6-5d59-477c-8b21-18703f0c71fd